Cogmind - Beta 15 @@@ ROGUE MODE // 2025.07.07 @ 16:08:21 Player: Skysub Result: Destroyed by 08-XOB(R) with Subdweller Laser Performance ------------- Evolutions (0) 0 Regions Visited (2) 400 Robots Destroyed (20) 100 Value Destroyed (516) 516 Prototype IDs (0) 0 Alien Tech Used (0) 0 Bonus (0) 0 TOTAL SCORE: 1016 Bonus ------- None Cogmind --------- Core Integrity 0/250 Matter 300/300 Energy 99/100 System Corruption 8% Temperature Cool (6) Movement Core (100) Ox1 Location -10/Subcaves Parts ------- > --- POWER (1) -------- (None) > --- PROPULSION (2) --- (None) > --- UTILITY (2) ------ Subdweller Optics > --- WEAPON (2) ------- Mining Claw (fused) > --- INVENTORY (5) ---- Light Humpback Structural Scanner Light Armor Plating Subdweller Laser Peak State ------------ > --- POWER ------------ Ion Engine > --- PROPULSION ------- Light Treads Light Treads > --- UTILITY ---------- Small Storage Unit > --- WEAPON ----------- Assault Rifle Light Assault Rifle > --- INVENTORY -------- Light Ion Engine Assault Rifle [Rating: 6] Favorites ----------- Power Light Ion Engine Engine Light Ion Engine Propulsion Light Treads Treads Light Treads Wheel Compact Wheel Utility Cargo Storage Unit Device Subdweller Optics Storage Cargo Storage Unit Weapon Assault Rifle Energy Gun Small Laser Ballistic Gun Assault Rifle Launcher Subdweller Shrapnel Launcher Slashing Weapon Mining Claw Build | -11 -10 -10 ------- Run | Yrd Mat Sub Slots Evolved . | . . . Power . | . . . Propulsion . | . . . Utility . | . . . Weapon . | . . . Parts Attached 14 | 7 2 5 Power 2 | 2 . . Engine 2 | 2 . . Core . | . . . Reactor . | . . . Propulsion 3 | 2 1 . Treads 2 | 2 . . Leg . | . . . Wheel 1 | . 1 . Hover . | . . . Flight . | . . . Utility 3 | 1 1 1 Device 1 | . . 1 Storage 2 | 1 1 . Processor . | . . . Hackware . | . . . Protection . | . . . Artifact . | . . . Weapon 6 | 2 . 4 Energy Gun 1 | . . 1 Energy Cannon . | . . . Ballistic Gun 3 | 2 . 1 Ballistic Cannon . | . . . Launcher 1 | . . 1 Special Weapon . | . . . Impact Weapon . | . . . Slashing Weapon 1 | . . 1 Piercing Weapon . | . . . Special Melee Weapon . | . . . Unidentified Prototypes . | . . . Corrupted Parts 1 | . 1 . System Corruption 8 | . 8 . Parts Lost 7 | . 3 4 Power 2 | . 1 1 Propulsion 2 | . 2 . Utility . | . . . Weapon 3 | . . 3 Highest Loss Streak 3 | . 3 2 To Critical Strikes 1 | . . 1 Average Backups 4 | 2 5 3 Power . | . 1 . Propulsion . | . . . Utility 1 | . . 2 Weapon 2 | . 2 1 Tool/Special . | . . . Unused Backups 3 | . . 3 Power . | . . . Propulsion . | . . . Utility 2 | . . 2 Weapon 1 | . . 1 Tool/Special . | . . . Average Slot Usage (%) 67 | . 79 59 Engine 11 | . 11 11 Treads 9 | . 22 . Wheel 4 | . 2 5 Device 1 | . . 2 Storage 12 | . 14 11 Energy Gun 4 | . . 7 Ballistic Gun 22 | . 28 19 Peak Build Rating 6 | 6 6 6 Average Rating 5 | 5 5 5 On Entrance 3 | . 6 5 Naked Turns . | . . . Heaviest Build 146 | 13 143 146 Greatest Support 40 | 40 40 16 Greatest Overweight (x) 48 | . 47 48 Average Overweight (x) 3 | . 1 7 Largest Inventory Capacity 30 | 8 30 30 Average Capacity 19 | 7 12 25 Most Carried 8 | 4 8 5 Average Carried 4 | 2 5 4 Final Capacity 30 | 8 30 5 Final Carried 6 | 4 6 5 Class Distribution -------------------- 53% | Hauler-Mutant 46% | Mutant Dominant Class ---------------- Mutant | -10/Materials Hauler-Mutant | -10/Subcaves Resources | -11 -10 -10 ----------- Run | Yrd Mat Sub Matter Collected 634 | 194 216 224 Remotely . | . . . Salvage Created 675 | 79 550 46 Parts 45 | 12 33 . Haulers Intercepted . | . . . Recyclers Shooed 1 | . 1 . Parts Field Recycled . | . . . Retrieved Matter . | . . . Parts Self-Destructed 7 | . . 7 Prevented . | . . . Kills | -11 -10 -10 ------- Run | Yrd Mat Sub Combat Hostiles Destroyed 11 | . 11 . Guns 10 | . 10 . AOE 1 | . 1 . Classes Destroyed 5 | 1 3 1 Worker 2 | . 2 . Tunneler 4 | 4 . . Recycler 1 | . 1 . Turret 2 | . . 2 Grunt 11 | . 11 . Best Kill Streak 3 | 2 3 1 Combat Bots Only 3 | . 3 . Max Kills in Single Turn 1 | 1 1 1 Gunslinging . | . . . Exploded 1 | . 1 . Melee . | . . . Uniques/NPCs Destroyed . | . . . Combat | -11 -10 -10 -------- Run | Yrd Mat Sub Hostile Shots Fired 160 | . 56 104 Missed 50 | . 13 37 Hits 110 | . 43 67 Projectile 110 | . 43 67 Critical Strikes 3 | . 2 1 Damage Taken 1129 | . 569 560 Core 262 | . 43 219 Absorbed by Shields . | . . . Core Remaining (%) 100 | 100 . . Volleys Fired 60 | 6 36 18 Largest 2 | 2 2 2 Hottest 60 | 40 40 60 Shots Fired 111 | 12 72 27 Gun 111 | 12 72 27 Cannon . | . . . Launcher . | . . . Special . | . . . Kinetic 107 | 12 72 23 Thermal 4 | . . 4 Explosive . | . . . Electromagnetic . | . . . Robot Hit Streak 10 | 6 10 4 Robot Miss Streak 4 | 1 2 4 Penetration Max . | . . . Secondary Targets 3 | . 3 . Max Gunslinging Chain 1 | . 1 . Shots Hit Robots 75 | 9 51 15 Core Hits 37 | 5 26 6 Critical Kills 1 | . 1 . Critical Parts Destroyed 4 | 1 1 2 Critical Strikes 5 | 1 2 2 Destroy 5 | 1 2 2 Melee Attacks 4 | . . 4 Impact . | . . . Slashing 4 | . . 4 Piercing . | . . . Sneak Attacks . | . . . Combat Hostiles . | . . . Follow-up Attacks . | . . . Damage Inflicted 866 | 100 581 185 Guns 773 | 100 511 162 Cannons . | . . . Explosions 60 | . 60 . Melee 23 | . . 23 Ramming 10 | . 10 . Kinetic 751 | 100 511 140 Thermal 22 | . . 22 Explosive . | . . . Electromagnetic 60 | . 60 . Impact . | . . . Slashing 23 | . . 23 Piercing . | . . . Highest Corruption 8 | . 8 8 Average Corruption 8 | . 8 8 Corruption Purged . | . . . Corruption Blocked . | . . . Effects 37 | . 4 33 Message Errors 4 | . . 4 Matter Fused 12 | . 1 11 Heat Flow Errors 5 | . . 5 Energy Discharges 6 | . . 6 Parts Rejected 1 | . . 1 Parts Fused 1 | . . 1 Data Loss (minor) 2 | . 1 1 Data Loss (major) 4 | . 2 2 Misfires 2 | . . 2 Overload Shots . | . . . Overflow Damage 5 | . 5 . Projectiles . | . . . Explosions 5 | . 5 . Melee . | . . . Knockbacks . | . . . Impact . | . . . Kinetic . | . . . Secondary . | . . . Self-Inflicted Damage 65 | . 65 . Shots 3 | . 3 . Rammed 1 | . 1 . Targets Rammed 3 | . 3 . Kicked . | . . . Crushed 2 | . 2 . Highest Temperature 252 | . 35 252 Average Temperature 44 | . 12 112 Received Heat Transfer 723 | . 321 402 Siege Activations . | . . . Martial Activations . | . . . Shielding Activations . | . . . Robots Disrupted . | . . . Combat Hostiles . | . . . Robots Corrupted . | . . . Combat Hostiles . | . . . Parts Fried . | . . . Impact Corruptions . | . . . Robots Melted . | . . . Combat Hostiles . | . . . Parts Melted . | . . . Heat Transferred 50 | . . 50 Parts Sabotaged . | . . . Parts Stolen . | . . . Parts Stripped . | . . . Power Chain Reactions 2 | . 2 . Alert | -11 -10 -10 ------- Run | Yrd Mat Sub Maximum Alert Level . | . . . Low Security (%) 100 | 100 100 . Level 1 . | . . . Level 2 . | . . . Level 3 . | . . . Level 4 . | . . . Level 5 . | . . . High Security . | . . . Max Security . | . . . Peak Influence 191 | 10 191 . Initial . | . . . Average 76 | 1 88 . Influence Increases 620 | 20 440 160 Destroy 0b10 Robot/C 260 | . 220 40 Destroy 0b10 Robot/NC 35 | 20 15 . Destroy Leader 50 | . 50 . Successful Hack 42 | . 42 . Select Force Hacks 30 | . 30 . Disable Machine 30 | . 30 . Destroy Structure 8 | . 8 . Lose Combat Pursuer 165 | . 45 120 Influence Decreases 620 | 20 305 295 Entered New Map 66 | . . 66 Time Decay 504 | 20 275 209 Lost Part 50 | . 30 20 Squads Dispatched 4 | . 4 . Investigation 3 | . 3 . Extermination . | . . . Reinforcement 1 | . 1 . Assault . | . . . Garrison . | . . . Intercept . | . . . Searches Triggered . | . . . Construction Impeded . | . . . Haulers Reinforced . | . . . Active Scanning Responses . | . . . Cargo Convoy Interrupts . | . . . Stealth | -11 -10 -10 --------- Run | Yrd Mat Sub Distress Signals 1 | . 1 . Communications Jammed . | . . . Distress Signals . | . . . Times Spotted 23 | . 18 5 Peak Tracking Total 6 | . 3 6 Tactical Retreats 9 | . 2 7 Traps | -11 -10 -10 ------- Run | Yrd Mat Sub Traps Triggered 1 | . 1 . Indirectly . | . . . Trap Hack Attempts . | . . . Triggered . | . . . Disarmed . | . . . Reprogrammed . | . . . Reused . | . . . Traps Extracted . | . . . Installed . | . . . Triggered . | . . . Machines | -11 -10 -10 ---------- Run | Yrd Mat Sub Machines Disabled 2 | . 2 . Max in Single Turn 2 | . 2 . Machines Repaired . | . . . Machines Dismantled . | . . . Machines Sabotaged . | . . . Overloaded Fab Kills . | . . . Hacking | -11 -10 -10 --------- Run | Yrd Mat Sub Machines Accessed 6 | . 6 . Terminals 5 | . 5 . Fabricators . | . . . Repair Stations . | . . . Recycling Units 1 | . 1 . Scanalyzers . | . . . Garrison Access . | . . . Total Hacks 21 | . 21 . Successful 13 | . 13 . Failed 8 | . 8 . Catastrophic . | . . . Database Lockouts . | . . . Manual 15 | . 15 . Terminals 17 | . 17 . Fabricators . | . . . Repair Stations . | . . . Recycling Units 4 | . 4 . Scanalyzers . | . . . Garrison Access . | . . . Terminal Hacks 1 | . 1 . Locate Traps 1 | . 1 . Fabricator Hacks . | . . . Repair Station Hacks . | . . . Recycling Unit Hacks 2 | . 2 . Report Inventory 1 | . 1 . Retrieve Components 1 | . 1 . Scanalyzer . | . . . Garrison Access Hacks . | . . . Unauthorized Hacks 10 | . 10 . Terminals 9 | . 9 . Botnet 4 | . 4 . Skim 5 | . 5 . Fabricators . | . . . Repair Stations . | . . . Recycling Units 1 | . 1 . Tunnel 1 | . 1 . Scanalyzers . | . . . Garrison Access . | . . . Data Cores Recovered . | . . . Used . | . . . Hacking Detections 4 | . 4 . Full Trace Events 1 | . 1 . Feedback Events . | . . . Feedback Blocked . | . . . Robot Schematics Acquired . | . . . Robots Built . | . . . Authchips . | . . . Time . | . . . Total Robot Build Rating . | . . . Part Schematics Acquired . | . . . Parts Built . | . . . Authchips . | . . . Time . | . . . Total Part Build Rating . | . . . Parts Repaired . | . . . Time . | . . . Parts Recycled . | . . . Recycled Matter . | . . . Retrieved Matter . | . . . Retrieved Components 9 | . 9 . Parts Scanalyzed . | . . . Part Schematics Acquired . | . . . Parts Damaged . | . . . Bothacking | -11 -10 -10 ------------ Run | Yrd Mat Sub Used RIF Installer . | . . . Robots Hacked . | . . . Non-combat . | . . . Combat . | . . . Robot Hacks Applied . | . . . Relay Couplers Released . | . . . Fabnet Peak Effective % . | . . . Robots Rewired . | . . . Allies Hacked . | . . . Hacks Repelled . | . . . Allies | -11 -10 -10 -------- Run | Yrd Mat Sub Total Allies . | . . . Largest Group . | . . . Highest-Rated Group . | . . . Highest-Rated Ally . | . . . Total Orders . | . . . Ally Attacks . | . . . Total Damage . | . . . Kills . | . . . Allies Corrupted . | . . . Allies Melted . | . . . Intel | -11 -10 -10 ------- Run | Yrd Mat Sub Active Infowar (turns) 165 | . . 165 Optics 165 | . . 165 Robot Analysis Total . | . . . Derelict Logs Recovered 2 | . . 2 Drone Launches . | . . . Drone Recoveries . | . . . Exploration | -11 -10 -10 ------------- Run | Yrd Mat Sub Turns Passed 1933 | 124 752 1057 Spaces Moved 744 | 60 354 330 Core 169 | 1 2 166 Treads 359 | 59 300 . Legs . | . . . Wheels 216 | . 52 164 Hover . | . . . Flight . | . . . Fastest Speed 50 | 50 150 50 Average Speed 227 | 158 175 295 Slowest Speed 2450 | 160 2400 2450 Overloaded Moves . | . . . Propulsion Burnouts . | . . . Robots Hopped . | . . . Potential Cave-ins . | . . . Cave-ins Triggered . | . . . Exploration Rate (%) 28 | 5 61 19 Regions Visited 2 Branch Regions 1 Pre-discovered Areas 1 | . 1 . Known Exits Taken . | . . . Unknown Exits Taken 2 | 1 1 . Scrap Searched 5 | . . 5 Spaces Dug . | . . . Terrain Destroyed 7 | . 7 . Melee . | . . . Projectile . | . . . AOE 7 | . 7 . Terrain Rammed . | . . . Walls Destroyed . | . . . Machines Disabled . | . . . Actions | -11 -10 -10 --------- Run | Yrd Mat Sub Total 875 | 75 420 380 Wait 34 | . 19 15 Move 742 | 59 353 330 Hop . | . . . Pick Up 12 | 3 6 3 Fast Attach 8 | 6 1 1 Attach 4 | . 1 3 Detach 1 | . . 1 Swap 3 | 1 . 2 Drop 4 | . 1 3 Fire 60 | 6 36 18 Melee 4 | . . 4 Ram . | . . . Kick . | . . . Crush 3 | . 3 . Escape Stasis . | . . . Rewire . | . . . Trap . | . . . Miscellaneous . | . . . Route ------- -11/Scrapyard -10/Materials (discovered 2 exits: [*Min] / [*Sub]) -10/Subcaves (discovered 1 exit: [*Rec]) History --------- Turn | Location | Event 7 | -11/Scrapyard | Discovered new exit (range 15) 125 | -11/Scrapyard | Entered Materials 316 | -10/Materials | Build established: Mutant 416 | -10/Materials | Discovered new exit (range 9) 616 | -10/Materials | Discovered new exit (range 10) 762 | -10/Materials | Lost 3 parts (1p2n) 877 | -10/Materials | Entered Subcaves 1050 | -10/Subcaves | Build established: Hauler-Mutant 1189 | -10/Subcaves | Learned Materials stockpile data 1256 | -10/Subcaves | A swath of the cavern ceiling suddenly collapsed 1728 | -10/Subcaves | Discovered new exit (range 9) 1735 | -10/Subcaves | Core integrity fell below 50% 1919 | -10/Subcaves | Disturbed a concealed Subdweller 1928 | -10/Subcaves | Core integrity fell below 20% 1934 | -10/Subcaves | Destroyed by 08-XOB(R) with Subdweller Laser Last Messages --------------- 01896_ Found 50 Matter. 01897_ Acquired 27 matter. 01898_ Searching scrap... 01898_ Found Barrage Gun. 01898_ Found 53 Matter. 01901_ System corrupted: Heat flow error (+248). 01902_ Searching scrap... 01902_ Found Lgt. Humpback. 01902_ Found Sub. Beam Cannon. 01902_ Found 70 Matter. 01907_ Dropped Cargo Storage Unit. 01909_ Acquired Lgt. Humpback. 01911_ Dropped Sml. Laser. 01911_ Acquired Sub. Laser. 01916_ Acquired Sub. Shrapnel Launcher. 01918_ Acquired 10 matter. 01919_ 08-XOB(R) angrily emerges from the Twisted Machinery. 01925_ System corrupted: Mining Claw fused. 01929_ Critical hit (Destroy). 01929_ Sub. Shrapnel Launcher destroyed. Map ----- +----------------------------------------------------+ | | | | | | | | | | | | | | | | | | | ?????????????????????????????????????????????????? | | ?????????????????????????????????????????????????? | | ?????????????????????????????????????????????????? | | ?????????????????????????????????????????????????? | | ?????????????????????????????????????????????????? | | ?????????????????????????????????????????????????? | | ?????????????????????????????????????????????????? | | ?????????????????????????????????????????????????? | | ?????????????????????????????????????????????????? | | ?????????????????????????????????????????????????? | | ?????????????????????????????????????????????????? | | ?????????????????????????????????????????????????? | | ?????????????????????########????????????????????? | | ?????????????????????# * [!###??????????????????? | | ?????????????????????# #]# #??????????????????? | | ?????????????????????# ##%## #??????????????????? | | ?????????????????????# #<@<## #??????????????????? | | ???????????????#?##### #